Cogmind - Beta 13 @@@ ROGUE MODE // 2024.04.12 @ 20:40:10 Player: Exceptionally Mediocre Result: Destroyed by P-60 Hacker with Shock Rifle Performance ------------- Evolutions (0) 0 Regions Visited (4) 800 Robots Destroyed (57) 285 Value Destroyed (866) 866 Prototype IDs (2) 40 Alien Tech Used (0) 0 Bonus (99) 99 TOTAL SCORE: 2090 Bonus ------- High Alert Combat Kills 78 Follower Combat Kills 21 Cogmind --------- Core Integrity 0/250 Matter 300/300 Energy 154/155 System Corruption 1% Temperature Cool (0) Movement Rolling (138) Location -8/Recycling Parts ------- > --- POWER (1) -------- Multi-Ion Engine > --- PROPULSION (2) --- Wheeled Compact-Scrap Exoskeleton > --- UTILITY (2) ------ Armored Scrap Engine > --- WEAPON (2) ------- Hammer > --- INVENTORY (5) ---- Cargo Storage Unit Hacking Suite System Shield Plasma Flamer Peak State ------------ > --- POWER ------------ Multi-Ion Engine > --- PROPULSION ------- Wheeled Compact-Scrap Exoskeleton > --- UTILITY ---------- Armored Scrap Engine > --- WEAPON ----------- Heavy Particle Cannon Hammer > --- INVENTORY -------- Cargo Storage Unit Improved Terrain Scanner System Shield Mining Laser [Rating: 29] Favorites ----------- Power Light Ion Engine Engine Light Ion Engine Propulsion Wheel Leg Makeshift Leg Wheel Wheel Utility Cargo Storage Unit Device Armored Scrap Engine Storage Cargo Storage Unit Protection Weapon Shielding Weapon Heavy Particle Cannon Energy Gun Makeshift Laser Energy Cannon Heavy Particle Cannon Ballistic Gun Assault Rifle Launcher Grenade Launcher Special Weapon Mining Laser Impact Weapon Hammer Build | -11 -10 -10 -10 -8 ------- Run | Yrd Mat Min Sub Rec Slots Evolved . | . . . . . Power . | . . . . . Propulsion . | . . . . . Utility . | . . . . . Weapon . | . . . . . Parts Attached 29 | 7 7 4 8 3 Power 3 | 1 1 . 1 . Engine 3 | 1 1 . 1 . Core . | . . . . . Reactor . | . . . . . Propulsion 8 | 2 1 1 4 . Treads . | . . . . . Leg 2 | . . . 2 . Wheel 6 | 2 1 1 2 . Hover . | . . . . . Flight . | . . . . . Utility 4 | 1 2 . . 1 Device 1 | . . . . 1 Storage 2 | 1 1 . . . Processor . | . . . . . Hackware . | . . . . . Protection 1 | . 1 . . . Artifact . | . . . . . Weapon 14 | 3 3 3 3 2 Energy Gun 1 | . . . 1 . Energy Cannon 1 | . . 1 . . Ballistic Gun 5 | 3 1 . . 1 Ballistic Cannon . | . . . . . Launcher 3 | . 1 1 1 . Special Weapon 2 | . 1 . 1 . Impact Weapon 2 | . . 1 . 1 Slashing Weapon . | . . . . . Piercing Weapon . | . . . . . Special Melee Weapon . | . . . . . Unidentified Prototypes . | . . . . . Parts Lost 8 | . 1 2 4 1 Power 1 | . . . 1 . Propulsion 3 | . 1 . 2 . Utility . | . . . . . Weapon 4 | . . 2 1 1 Highest Loss Streak 3 | . 1 1 3 1 To Critical Strikes . | . . . . . Average Slot Usage (%) 79 | . 89 83 83 71 Engine 10 | . 14 14 14 4 Core 3 | . . . . 9 Treads 1 | . . . . 3 Leg 1 | . . . 4 . Wheel 20 | . 27 28 21 9 Device 4 | . . . . 13 Storage 9 | . 14 14 14 . Energy Cannon 8 | . . 5 14 13 Ballistic Gun 7 | . 20 5 . 5 Launcher 6 | . 5 13 9 . Impact Weapon 3 | . . 2 . 7 Naked Turns . | . . . . . Heaviest Build 155 | 14 148 152 155 152 Greatest Support 26 | 26 26 26 26 18 Greatest Overweight (x) 15 | . 9 5 15 15 Average Overweight (x) 2 | . . 5 7 1 Largest Inventory Capacity 30 | 8 30 30 30 30 Average Capacity 18 | 7 12 30 30 6 Most Carried 30 | 7 16 29 30 30 Average Carried 14 | 3 8 22 29 5 Final Capacity 30 | 8 30 30 30 5 Final Carried 30 | 7 16 29 30 5 Scrap Engine Consumption 55 | . . . . 55 Constructs Created 2 | . . . . 2 Constructs Modified 9 | . . . . 9 Class Distribution -------------------- 50% | Hauler-Mutant 29% | Construct 19% | Mutant Dominant Class ---------------- Mutant | -10/Materials Hauler-Mutant | -10/Mines Hauler-Mutant | -10/Subcaves Construct | -8/Recycling Resources | -11 -10 -10 -10 -8 ----------- Run | Yrd Mat Min Sub Rec Matter Collected 1118 | 324 177 374 144 99 Remotely . | . . . . . Salvage Created 2094 | 203 362 79 130 1320 Parts 121 | 14 38 14 12 43 Haulers Intercepted 1 | . 1 . . . Recyclers Shooed 7 | . 1 . . 6 Parts Field Recycled . | . . . . . Retrieved Matter . | . . . . . Parts Self-Destructed 13 | . . . 13 . Prevented . | . . . . . Kills | -11 -10 -10 -10 -8 ------- Run | Yrd Mat Min Sub Rec Combat Hostiles Destroyed 24 | . 10 5 7 2 Melee 1 | . . . . 1 Guns 6 | . 6 . . . Cannons 4 | . . 1 2 1 AOE 13 | . 4 4 5 . Classes Destroyed 12 | 3 5 . 3 1 Worker 8 | 2 3 3 . . Builder 4 | . . . . 4 Tunneler 3 | 3 . . . . Hauler 1 | . 1 . . . Recycler 12 | 1 . . . 11 Operator 1 | . 1 . . . Turret 1 | . . . 1 . Watcher 3 | . 3 . . . Swarmer 13 | . 3 5 5 . Grunt 7 | . 7 . . . Sentry 3 | . . . 1 2 Subdweller 1 | . . . 1 . Best Kill Streak 7 | 3 7 3 5 7 Combat Bots Only 5 | . 3 3 5 1 Max Kills in Single Turn 3 | 1 2 3 2 1 Gunslinging . | . . . . . Exploded 3 | . 2 3 2 . Melee 1 | . . . . 1 Uniques/NPCs Destroyed . | . . . . . Combat | -11 -10 -10 -10 -8 -------- Run | Yrd Mat Min Sub Rec Hostile Shots Fired 189 | . 54 29 58 48 Missed 64 | . 19 10 24 11 Damage Taken 1531 | . 396 205 381 549 Core 258 | . 85 48 64 61 Absorbed by Shields . | . . . . . Redirected to Shielding 3 | . 3 . . . Regen/Repaired (Parts) 101 | . . . . 101 Core Remaining (%) 100 | 100 . . . . Volleys Fired 141 | 9 48 11 22 51 Largest 2 | 2 2 1 2 2 Hottest 125 | 40 120 75 125 105 Shots Fired 203 | 18 76 11 26 72 Gun 101 | 18 58 . 4 21 Cannon 64 | . . 4 11 49 Launcher 28 | . 13 7 8 . Special 10 | . 5 . 3 2 Kinetic 97 | 18 58 . . 21 Thermal 78 | . 5 4 18 51 Explosive 28 | . 13 7 8 . Electromagnetic . | . . . . . Robot Hit Streak 15 | 4 9 4 5 15 Robot Miss Streak 2 | 1 2 1 2 2 Penetration Max . | . . . . . Secondary Targets . | . . . . . Shots Hit Robots 124 | 12 39 4 12 57 Core Hits 79 | 6 33 9 10 21 Critical Kills 1 | . . . . 1 Critical Parts Destroyed . | . . . . . Critical Strikes 2 | . . . 1 1 Burn 1 | . . . 1 . Smash 1 | . . . . 1 Melee Attacks 5 | . . . . 5 Impact 5 | . . . . 5 Slashing . | . . . . . Piercing . | . . . . . Sneak Attacks . | . . . . . Combat Hostiles . | . . . . . Follow-up Attacks . | . . . . . Damage Inflicted 3841 | 147 1095 457 852 1290 Guns 876 | 147 454 . 32 243 Cannons 1250 | . . 100 200 950 Explosions 1594 | . 641 357 596 . Melee 73 | . . . . 73 Ramming . | . . . . . Kinetic 844 | 147 454 . . 243 Thermal 1330 | . . 100 256 974 Explosive 1516 | . 563 357 596 . Electromagnetic 78 | . 78 . . . Impact 73 | . . . . 73 Slashing . | . . . . . Piercing . | . . . . . Highest Corruption 1 | . . . . 1 Average Corruption 1 | . . . . 1 Corruption Purged . | . . . . . Corruption Blocked . | . . . . . Effects 1 | . . . . 1 Data Loss (minor) 1 | . . . . 1 Overload Shots . | . . . . . Overflow Damage 42 | . . 15 17 10 Projectiles 10 | . . . . 10 Explosions 32 | . . 15 17 . Melee . | . . . . . Knockbacks . | . . . . . Impact . | . . . . . Kinetic . | . . . . . Secondary . | . . . . . Self-Inflicted Damage 49 | . 4 12 33 . Shots 3 | . 1 1 1 . Rammed . | . . . . . Targets Rammed . | . . . . . Kicked . | . . . . . Crushed . | . . . . . Highest Temperature 301 | . 40 34 48 301 Average Temperature 74 | . 12 21 24 89 Received Heat Transfer 483 | . 174 . 174 135 Siege Activations . | . . . . . Robots Corrupted . | . . . . . Combat Hostiles . | . . . . . Parts Fried . | . . . . . Impact Corruptions . | . . . . . Robots Melted . | . . . . . Combat Hostiles . | . . . . . Parts Melted 1 | . . . . 1 Heat Transferred 2098 | . . 148 494 1456 Parts Sabotaged . | . . . . . Parts Stolen . | . . . . . Parts Stripped . | . . . . . Power Chain Reactions . | . . . . . Alert | -11 -10 -10 -10 -8 ------- Run | Yrd Mat Min Sub Rec Peak Influence 1788 | 30 297 188 . 1788 Initial 1659 | . 19 111 . 1659 Average 677 | 11 159 71 . 1526 Maximum Alert Level 5 | . 1 . . 5 Low Security (%) 53 | 100 66 100 . . Level 1 6 | . 33 . . . Level 2 . | . . . . . Level 3 . | . . . . . Level 4 23 | . . . . 56 Level 5 17 | . . . . 43 High Security . | . . . . . Max Security . | . . . . . Squads Dispatched 4 | . 4 . . . Investigation 2 | . 2 . . . Extermination . | . . . . . Reinforcement 2 | . 2 . . . Assault . | . . . . . Garrison . | . . . . . Intercept . | . . . . . Searches Triggered . | . . . . . Construction Impeded . | . . . . . Haulers Reinforced . | . . . . . Active Scanning Responses . | . . . . . Cargo Convoy Interrupts . | . . . . . Stealth | -11 -10 -10 -10 -8 --------- Run | Yrd Mat Min Sub Rec Distress Signals 1 | . 1 . . . Communications Jammed . | . . . . . Distress Signals . | . . . . . Times Spotted 143 | . 17 6 113 7 Peak Tracking Total 8 | . 4 3 8 5 Tactical Retreats 14 | . . . 14 . Traps | -11 -10 -10 -10 -8 ------- Run | Yrd Mat Min Sub Rec Traps Triggered 3 | . 2 1 . . Indirectly 1 | . 1 . . . Trap Hack Attempts . | . . . . . Triggered . | . . . . . Disarmed . | . . . . . Reprogrammed . | . . . . . Reused . | . . . . . Traps Extracted . | . . . . . Installed . | . . . . . Triggered . | . . . . . Machines | -11 -10 -10 -10 -8 ---------- Run | Yrd Mat Min Sub Rec Machines Disabled 12 | . 4 . 4 4 Max in Single Turn 4 | . 2 . 4 1 Machines Repaired . | . . . . . Machines Dismantled . | . . . . . Machines Sabotaged . | . . . . . Overloaded Fab Kills . | . . . . . Hacking | -11 -10 -10 -10 -8 --------- Run | Yrd Mat Min Sub Rec Machines Accessed 13 | . 4 1 . 8 Terminals 7 | . 3 . . 4 Fabricators . | . . . . . Repair Stations . | . . . . . Recycling Units 5 | . 1 . . 4 Scanalyzers . | . . . . . Garrison Access . | . . . . . Total Hacks 25 | . 7 1 . 17 Successful 19 | . 5 1 . 13 Failed 6 | . 2 . . 4 Catastrophic . | . . . . . Database Lockouts . | . . . . . Manual 11 | . 4 . . 7 Terminals 14 | . 4 . . 10 Fabricators . | . . . . . Repair Stations . | . . . . . Recycling Units 10 | . 3 . . 7 Scanalyzers . | . . . . . Garrison Access . | . . . . . Terminal Hacks 5 | . 1 1 . 3 Part Schematic 1 | . . . . 1 Open Door 1 | . . 1 . . Terminal Index 1 | . 1 . . . Alert Level 1 | . . . . 1 Unreport Threat 1 | . . . . 1 Fabricator Hacks . | . . . . . Repair Station Hacks . | . . . . . Recycling Unit Hacks 8 | . 1 . . 7 Report Inventory 2 | . . . . 2 Retrieve Components 6 | . 1 . . 5 Scanalyzer . | . . . . . Garrison Access Hacks . | . . . . . Unauthorized Hacks 6 | . 3 . . 3 Terminals 6 | . 3 . . 3 Botnet 6 | . 3 . . 3 Fabricators . | . . . . . Repair Stations . | . . . . . Recycling Units . | . . . . . Scanalyzers . | . . . . . Garrison Access . | . . . . . Data Cores Recovered . | . . . . . Used . | . . . . . Hacking Detections 5 | . 2 . . 3 Full Trace Events 2 | . . . . 2 Feedback Events 1 | . . . . 1 Corruption 1 | . . . . 1 Feedback Blocked . | . . . . . Robot Schematics Acquired . | . . . . . Robots Built . | . . . . . Authchips . | . . . . . Time . | . . . . . Total Robot Build Rating . | . . . . . Part Schematics Acquired 1 | . . . . 1 Parts Built . | . . . . . Authchips . | . . . . . Time . | . . . . . Total Part Build Rating . | . . . . . Parts Repaired . | . . . . . Time . | . . . . . Parts Recycled . | . . . . . Recycled Matter . | . . . . . Retrieved Matter . | . . . . . Retrieved Components 23 | . 5 . . 18 Parts Scanalyzed . | . . . . . Part Schematics Acquired . | . . . . . Parts Damaged . | . . . . . Bothacking | -11 -10 -10 -10 -8 ------------ Run | Yrd Mat Min Sub Rec Used RIF Installer . | . . . . . Robots Hacked . | . . . . . Non-combat . | . . . . . Combat . | . . . . . Robot Hacks Applied . | . . . . . Relay Couplers Released . | . . . . . Fabnet Peak Effective % . | . . . . . Robots Rewired . | . . . . . Allies Hacked . | . . . . . Hacks Repelled . | . . . . . Allies | -11 -10 -10 -10 -8 -------- Run | Yrd Mat Min Sub Rec Total Allies 3 | . . 3 . . Largest Group 3 | . . 3 . . Highest-Rated Group 40 | . . 40 . . Highest-Rated Ally 16 | . . 16 . . Total Orders . | . . . . . Ally Attacks 12 | . . 12 . . Total Damage 108 | . . 108 . . Kills 3 | . . 3 . . Allies Corrupted . | . . . . . Allies Melted . | . . . . . Intel | -11 -10 -10 -10 -8 ------- Run | Yrd Mat Min Sub Rec Robot Analysis Total . | . . . . . Derelict Logs Recovered 2 | . . 2 . . Drone Launches . | . . . . . Drone Recoveries . | . . . . . Exploration | -11 -10 -10 -10 -8 ------------- Run | Yrd Mat Min Sub Rec Turns Passed 3752 | 134 575 1193 542 1308 Spaces Moved 2093 | 101 405 698 236 653 Core 15 | 1 . . . 14 Treads 254 | . . . . 254 Legs 6 | . . . . 6 Wheels 1818 | 100 405 698 236 379 Hover . | . . . . . Flight . | . . . . . Fastest Speed 50 | 50 90 165 165 95 Average Speed 155 | 89 100 165 199 174 Slowest Speed 305 | 90 235 165 305 305 Overloaded Moves . | . . . . . Propulsion Burnouts . | . . . . . Robots Hopped . | . . . . . Cave-ins Triggered . | . . . . . Exploration Rate (%) 52 | 4 60 91 19 88 Regions Visited 4 Branch Regions 3 Pre-discovered Areas 1 | . . 1 . . Known Exits Taken . | . . . . . Unknown Exits Taken 4 | 1 1 1 1 . Scrap Searched 3 | . . 1 2 . Spaces Dug 5 | . 5 . . . Terrain Destroyed 144 | . 74 37 23 10 Melee . | . . . . . Projectile 15 | . 5 . . 10 AOE 129 | . 69 37 23 . Terrain Rammed . | . . . . . Walls Destroyed . | . . . . . Machines Disabled . | . . . . . Actions | -11 -10 -10 -10 -8 --------- Run | Yrd Mat Min Sub Rec Total 2366 | 122 495 728 276 745 Wait 5 | . 4 . . 1 Move 2089 | 100 404 697 235 653 Hop . | . . . . . Pick Up 59 | 6 20 16 8 9 Fast Attach 7 | 6 1 . . . Attach 10 | . 1 3 4 2 Detach 1 | . . . . 1 Swap 12 | 1 5 1 4 1 Drop 37 | . 12 . 3 22 Fire 141 | 9 48 11 22 51 Melee 5 | . . . . 5 Ram . | . . . . . Kick . | . . . . . Crush . | . . . . . Escape Stasis . | . . . . . Rewire . | . . . . . Trap . | . . . . . Miscellaneous . | . . . . . Route ------- -11/Scrapyard -10/Materials (discovered 2 exits: [*Mat] / *Min) -10/Mines (discovered 2 exits: [*Mat] / [*Sub]) -10/Subcaves -8/Recycling (discovered 1 exit: [*Fac]) History --------- Turn | Location | Event 24 | -11/Scrapyard | Discovered new exit (range 15) 135 | -11/Scrapyard | Entered Materials 308 | -10/Materials | Discovered new exit (range 8) 320 | -10/Materials | Build established: Mutant 552 | -10/Materials | Discovered new exit (range 15) 710 | -10/Materials | Entered Mines 797 | -10/Mines | A weapon hastily lodged in a ceiling crevice suddenly fell to the ground 885 | -10/Mines | Assisted by bots powering up and referring to "LRC-V3" 904 | -10/Mines | Build established: Hauler-Mutant 928 | -10/Mines | Learned location of Zion (-7) 928 | -10/Mines | Discovered new exit (range 10) 1133 | -10/Mines | Learned location of 1 exit from Materials 1184 | -10/Mines | Met a Derelict who couldn't figure out how to use a Trap Extractor 1413 | -10/Mines | Core integrity fell below 50% 1427 | -10/Mines | Lost 3 allies 1458 | -10/Mines | Received a Rocket Launcher from a helpful Derelict 1895 | -10/Mines | Discovered new exit (range 6) 1903 | -10/Mines | Entered Subcaves 1906 | -10/Subcaves | Shifting Twisted Machinery released Sub. Laser 2221 | -10/Subcaves | Discovered new exit (range 16) 2238 | -10/Subcaves | Lost 3 parts (1p1n1w) 2445 | -10/Subcaves | Entered Recycling 2473 | -8/Recycling | Found Scrap Engine 2934 | -8/Recycling | Build established: Construct 3297 | -8/Recycling | Discovered new exit (range 6) 3740 | -8/Recycling | Core integrity fell below 20% 3753 | -8/Recycling | Destroyed by P-60 Hacker with Shock Rifle Last Messages --------------- Trojan loaded successfully. Testing... Terminal linked with 2 systems. Awaiting botnet instructions. 03685_ Connecting with Terminal... 03710_ Scrap Engine modifies Treaded Scrap-Aluminum Exoskeleton: Penalty -36, Time/Move +12 Renamed Wheeled Compact-Scrap Exoskeleton. 03724_ System corrupted: Component data lost. 03734_ Arm. Scrap Engine consumes Arm. Treads. 03738_ Y-45 Defender springs to life. 03738_ Hvy. Particle Cannon destroyed. 03738_ Y-45 Defender springs to life. 03738_ Y-45 Defender suffers critical hit (Burn). 03738_ Y-45 Defender destroyed. 03739_ P-60 Hacker springs to life. 03739_ Y-45 Defender springs to life. 03739_ Critical hit (Burn: +37). Map ----- +----------------------------------------------------+ | | | | | | | | | | | | | | | | | | | | | | | | | ?????????????????????????????????????????????????? | | ?????????????????????????????????????????????????? | | ??##################?????????????????????????????? | | ??# ] ! % #?????????????##???############ | | ??# | ! [ +????????????? ??? | | ??# ] #???????????? ???? | | ??# ! % % [#??????????? """??? """" | | ??# ! #??????????? """?" """" | | ??# #?????????? """"" """" "T | | ??# /! %#???####### | | ??# = #???# ? | | ??# !%= #???# #???????####### | | ???########+######+##### ##########????# | | ?????????# Y p @ + #????# | | ########## ###########+#####"" #????# | | + # #?#"T """ #????# | | # # #?#"" """ ###### | | + + #?# """ + | | # # #?# """ ########## | | # ## # ##########?# """ #????????## | | # ######??????????# #?????????# | | # #???????????????# #?????????# | | # #???????????????#####+##############+ | | ########## ???????????????? # T | | ?????????# ?????????????????? # | | ?????????# ???????????????????? # | | ?????????#####+#???????????????????????# # | | ??????????????????????????????????????## + """ " | | ??????????????????????????????????????#% # """ " | | ??????????????????????????????????????## # """ " | | ???????????????????????????????????????# # | | ???????????????????????????????????????# ####### | | ???????????????????????????????????????# #?????? | | ??????????###???#####??????????????????# #?????? | | ???????####%##### #??????????????????# #?????? | | ???????# " #??????????????????# #?????? | | ???????# " #??????????????????# #?????? | | ???????# # #??????????????????# #?????? | +----------------------------------------------------+ Best States ------------- Heat Dissipation 25 Energy Generation 12 Energy Capacity 250 Matter Stores 300 Matter Capacity 300 Sight Range 16 Terrain Scan Density 10 Weapon Shielding 33 Evasion (%) 42 Recoil Reduction 2 Item Schematics ----------------- Greatsword | -8/Recycling | Hacked Robot Schematics ------------------ None Fabricated ------------ Nothing Alien Tech Used ----------------- None Achievements -------------- None Challenges ------------ None Game ------ Seed TargetRagnarokHammer Manual? 0 Play Time 00:34:58 Cumulative 45.1 hours Start 2024.04.12 @ 20:07:33 End 2024.04.12 @ 20:40:10 Sessions 1 Manual Loads 0 Difficulty Rogue Special Mode None Game No. 49 Rogue 49 Adventurer 0 Explorer 0 Win Type - Total 0 Types 0/0/0/0/0/0/0/0/0 Lore% 17 Gallery% 35 Achievement% 26 Wizard Run 0 Options --------- Layout 1 ASCII 0 Keyboard 1 Movement Vi Keybinds 0 Fullscreen 1 Font 24/Smallcaps Map View 50x35 Zoom Use 0% Tactical HUD 1 Map Filters NONE Filters NONE Steam 1 RUN: 8727d820-38cb-42ee-8d25-52c1d592aa31